fUSD/lending_fUSD_20250107
["ID","MTS","AMOUNT","RATE_DAILY","PERIOD"]
[348038552,1736272253395,-2179.67,0.00010314,2]
[348038553,1736272253405,-611.46,0.00010314,2]
[348038554,1736272253414,-1119.21,0.00010404,2]
[348038555,1736272253424,-866.16,0.00010413,2]
[348038556,1736272253433,-1383.54,0.00010413,2]
[348038557,1736272253445,-991.68,0.00010413,2]
[348038558,1736272253455,-762.59,0.00010413,2]
[348038559,1736272253465,-500.0,0.00010413,2]
[348038560,1736272253477,-1227.02,0.00010413,2]
[348038561,1736272253487,-637.36,0.00010413,2]
[348038562,1736272253497,-508.49,0.00010413,2]
[348038563,1736272253507,-500.0,0.00010413,2]
[348038564,1736272253516,-1029.16,0.00010413,2]
[348038565,1736272253526,-650.45,0.00010413,2]
[348038566,1736272253535,-500.0,0.00010413,2]
[348038567,1736272253545,-1663.49,0.00010413,2]
[348038568,1736272253555,-500.0,0.00010413,2]
[348038569,1736272253564,-500.0,0.00010413,2]
[348038570,1736272253575,-500.0,0.00010413,2]
[348038571,1736272253583,-500.0,0.00010413,2]
[348038572,1736272253593,-526.09300797,0.00010414,2]
[348038573,1736272253602,-500.0,0.00010414,2]
[348038574,1736272253611,-500.0,0.00010414,2]
[348038575,1736272253621,-649.39864183,0.00010414,2]
[348038576,1736272253630,-500.0,0.00010414,2]
[348038577,1736272253641,-1661.32,0.00010414,2]
[348038578,1736272253651,-500.0,0.00010414,2]
[348038579,1736272253660,-3402.67,0.00010414,2]
[348038580,1736272253670,-500.0,0.00010414,2]
[348038581,1736272253680,-566.8,0.00010414,2]
[348038582,1736272253691,-500.0,0.00010414,2]
[348038583,1736272253700,-500.0,0.00010414,2]
[348038584,1736272253709,-1107.42,0.00010414,2]
[348038585,1736272253720,-1952.83,0.00010414,2]
[348038586,1736272253730,-500.0,0.00010414,2]
[348038587,1736272253739,-500.0,0.00010414,2]
[348038588,1736272253749,-802.41,0.00010414,2]
[348038589,1736272253760,-936.05,0.00010414,2]
[348038590,1736272253770,-499.05,0.00010414,2]
[348038591,1736272253780,-567.31,0.00010414,2]
[348038592,1736272253789,-500.0,0.00010414,2]
[348038593,1736272253799,-1050.45,0.00010414,2]
[348038594,1736272253809,-500.0,0.00010414,2]
[348038595,1736272253819,-649.55,0.00010414,2]
[348038596,1736272253829,-606.55,0.00010414,2]
[348038597,1736272253839,-1364.31,0.00010414,2]
[348038598,1736272253849,-500.0,0.00010414,2]
[348038599,1736272253858,-1363.99,0.00010414,2]
[348038600,1736272253868,-500.0,0.00010414,2]
[348038601,1736272253878,-500.0,0.00010414,2]
[348038602,1736272253887,-500.0,0.00010415,2]
[348038603,1736272253897,-500.0,0.00010415,2]
[348038604,1736272253907,-500.0,0.00010415,2]
[348038605,1736272253916,-500.0,0.00010415,2]
[348038606,1736272253927,-581.26,0.00010415,2]
[348038607,1736272253939,-500.0,0.00010415,2]
[348038608,1736272253949,-536.55,0.00010415,2]
[348038609,1736272253958,-500.0,0.00010415,2]
[348038610,1736272253969,-1075.64,0.00010415,2]
[348038611,1736272253979,-919.68,0.00010415,2]
[348038612,1736272253988,-867.0,0.00010415,2]
[348038613,1736272253998,-500.0,0.00010415,2]
[348038614,1736272254009,-713.33,0.00010415,2]
[348038615,1736272254019,-667.51,0.00010415,2]
[348038616,1736272254028,-661.63,0.00010415,2]
[348038617,1736272254039,-1367.96,0.00010415,2]
[348038618,1736272254049,-629.9,0.00010415,2]
[348038619,1736272254059,-705.91,0.00010415,2]
[348038620,1736272254069,-500.0,0.00010415,2]
[348038621,1736272254079,-1268.32,0.00010415,2]
[348038622,1736272254093,-1000.0,0.00010415,2]
[348038623,1736272254108,-711.26,0.00010415,2]
[348038624,1736272254118,-545.05,0.00010415,2]
[348038625,1736272254128,-1853.8,0.00010415,2]
[348038626,1736272254138,-1376.9,0.00010415,2]
[348038627,1736272254148,-500.0,0.00010487,2]
[348038628,1736272254158,-500.0,0.00010487,2]
[348038629,1736272254168,-487.99236035,0.00010487,2]
[348038630,1736272254178,-500.0,0.00010487,2]
[348038631,1736272254189,-259.87,0.00010487,2]
[348038632,1736272254198,-500.0,0.00010487,2]
[348038633,1736272254208,-500.0,0.00010487,2]
[348038634,1736272254218,-500.0,0.00010487,2]
[348038635,1736272254229,-500.0,0.00010487,2]
[348038636,1736272254239,-500.0,0.00010487,2]
[348038637,1736272254249,-447.14176487,0.00010487,2]
[348038638,1736272254260,-500.0,0.00010487,2]
[348038639,1736272254270,-500.0,0.00010487,2]
[348038640,1736272254281,-500.0,0.00010487,2]
[348038641,1736272254290,-2702.51,0.00010487,2]
[348038642,1736272254301,-642.87361589,0.00010487,2]
[348038643,1736272254311,-1428.36,0.00010487,2]
[348038644,1736272254321,-500.0,0.00010487,2]
[348038645,1736272254331,-500.0,0.00010487,2]
[348038646,1736272254345,-1878.38,0.00010487,2]
[348038647,1736272254355,-500.0,0.00010487,2]
[348038648,1736272254364,-618.48,0.00010487,2]
[348038649,1736272254374,-500.0,0.00010487,2]
[348038650,1736272254384,-502.32,0.00010487,2]
[348038651,1736272254394,-500.0,0.00010487,2]
[348038652,1736272254404,-500.0,0.00010487,2]
[348038653,1736272254415,-500.0,0.00010587,2]
[348038654,1736272254425,-500.0,0.00010587,2]
[348038655,1736272254435,-500.0,0.00010587,2]
[348038656,1736272254446,-440.09075554,0.00010587,2]
[348038657,1736272254456,-500.0,0.00010587,2]
[348038658,1736272254465,-500.0,0.00010587,2]
[348038659,1736272254475,-500.0,0.00010587,2]
[348038660,1736272254485,-500.0,0.00010587,2]
[348038661,1736272254495,-363.6,0.00010587,2]
[348038662,1736272254505,-500.0,0.00010587,2]
[348038663,1736272254514,-500.0,0.00010587,2]
[348038664,1736272254524,-572.3384329,0.00010587,2]
[348038665,1736272254534,-500.0,0.00010587,2]
[348038666,1736272254543,-500.0,0.00010587,2]
[348038667,1736272254552,-500.0,0.00010587,2]
[348038668,1736272254562,-500.0,0.00010587,2]
[348038669,1736272254571,-500.0,0.00010587,2]
[348038670,1736272254582,-763.55,0.00010587,2]
[348038671,1736272254592,-628.73,0.00010587,2]
[348038672,1736272254602,-602.54,0.00010587,2]
[348038673,1736272254612,-500.0,0.00010587,2]
[348038674,1736272254623,-500.0,0.00010587,2]
[348038675,1736272254633,-917.02,0.00010587,2]
[348038676,1736272254643,-344.838578,0.00010587,2]
[348038677,1736272254652,-2473.99,0.00010587,2]
[348038678,1736272254662,-500.0,0.00010587,2]
[348038679,1736272254672,-500.0,0.00010587,2]
[348038680,1736272254682,-500.0,0.00010587,2]
[348038681,1736272254694,-867.63,0.00010587,2]
[348038682,1736272254703,-500.0,0.00010587,2]
[348038683,1736272254713,-413.015248,0.00010587,2]
[348038684,1736272254722,-500.0,0.00010587,2]
[348038685,1736272254732,-500.0,0.00010587,2]
[348038686,1736272254741,-500.0,0.00010587,2]
[348038687,1736272254751,-500.0,0.00010587,2]
[348038688,1736272254761,-655.66,0.00010587,2]
[348038689,1736272254771,-746.35,0.00010587,2]
[348038690,1736272254781,-628.35,0.00010587,2]
[348038691,1736272254791,-500.0,0.00010587,2]
[348038692,1736272254800,-500.0,0.00010587,2]
[348038693,1736272254810,-500.0,0.00010587,2]
[348038694,1736272254819,-1564.97,0.00010587,2]
[348038695,1736272254828,-157.93,0.00010587,2]
[348038696,1736272254838,-500.0,0.00010587,2]
[348038697,1736272254848,-500.0,0.00010587,2]
[348038698,1736272254857,-1076.27,0.00010587,2]
[348038699,1736272254867,-787.47,0.00010587,2]
[348038700,1736272254876,-500.0,0.00010587,2]
[348038701,1736272254886,-500.0,0.00010587,2]
[348038702,1736272254896,-2648.86,0.00010587,2]
[348038703,1736272254906,-500.0,0.00010587,2]
[348038704,1736272254916,-185.84,0.00010587,2]
[348038705,1736272254928,-500.0,0.00010587,2]
[348038706,1736272254941,-1986.92,0.00010587,2]
[348038707,1736272254950,-500.0,0.00010587,2]
[348038708,1736272254960,-500.0,0.00010587,2]
[348038709,1736272254971,-500.0,0.00010587,2]
[348038710,1736272254980,-641.19,0.00010587,2]
[348038711,1736272254989,-500.0,0.00010587,2]
[348038712,1736272254999,-500.0,0.00010587,2]
[348038713,1736272255009,-500.0,0.00010587,2]
[348038714,1736272255019,-548.1,0.00010587,2]
[348038715,1736272255029,-500.0,0.00010587,2]
[348038716,1736272255038,-500.0,0.00010587,2]
[348038717,1736272255047,-500.0,0.00010588,2]
[348038718,1736272255057,-500.0,0.00010588,2]
[348038719,1736272255067,-612.42,0.00010588,2]
[348038720,1736272255076,-549.16732318,0.00010588,2]
[348038721,1736272255086,-500.0,0.00010588,2]
[348038722,1736272255095,-500.0,0.00010588,2]
[348038723,1736272255105,-500.0,0.00010588,2]
[348038724,1736272255114,-500.0,0.00010588,2]
[348038725,1736272255126,-500.0,0.00010588,2]
[348038726,1736272255136,-209.31712036,0.00010588,2]
[348038727,1736272255146,-538.02,0.00010588,2]
[348038728,1736272255156,-500.0,0.00010588,2]
[348038729,1736272255165,-368.62,0.00010588,2]
[348038730,1736272255175,-500.0,0.00010588,2]
[348038731,1736272255184,-500.0,0.00010588,2]
[348038732,1736272255196,-500.0,0.00010588,2]
[348038733,1736272255206,-186.47100989,0.00010588,2]
[348038734,1736272255215,-500.0,0.00010588,2]
[348038735,1736272255224,-500.0,0.00010588,2]
[348038736,1736272255234,-500.0,0.00010588,2]
[348038737,1736272255244,-500.0,0.00010588,2]
[348038738,1736272255254,-500.0,0.00010588,2]
[348038739,1736272255264,-500.0,0.00010588,2]
[348038740,1736272255273,-517.22,0.00010588,2]
[348038741,1736272255337,-318.23,0.00010588,2]
[348038742,1736272255347,-500.0,0.00010588,2]
[348038743,1736272255357,-500.0,0.00010588,2]
[348038744,1736272255366,-500.0,0.00010588,2]
[348038745,1736272255375,-500.0,0.00010588,2]
[348038746,1736272255384,-500.0,0.00010588,2]
[348038747,1736272255394,-500.0,0.00010588,2]
[348038748,1736272255403,-500.0,0.00010588,2]
[348038749,1736272255413,-500.0,0.00010588,2]
[348038750,1736272255423,-500.0,0.00010588,2]
[348038751,1736272255432,-373.59,0.00010588,2]
[348038752,1736272255445,-500.0,0.00010588,2]
[348038753,1736272255455,-2179.67,0.00010588,2]
[348038754,1736272255465,-611.46,0.00010588,2]
[348038755,1736272255475,-866.16,0.00010687,2]
[348038756,1736272255486,-1383.54,0.00010687,2]
[348038757,1736272255495,-991.68,0.00010687,2]
[348038758,1736272255505,-762.59,0.00010687,2]
[348038759,1736272255515,-500.0,0.00010687,2]
[348038760,1736272255524,-1227.02,0.00010687,2]
[348038761,1736272255534,-637.36,0.00010687,2]
[348038762,1736272255543,-508.49,0.00010687,2]
[348038763,1736272255552,-500.0,0.00010687,2]
[348038764,1736272255563,-1029.16,0.00010687,2]
[348038765,1736272255572,-650.45,0.00010687,2]
[348038766,1736272255581,-500.0,0.00010687,2]
[348038767,1736272255591,-1663.49,0.00010687,2]
[348038768,1736272255601,-500.0,0.00010687,2]
[348038769,1736272255611,-500.0,0.00010687,2]
[348038770,1736272255621,-500.0,0.00010687,2]
[348038771,1736272255630,-500.0,0.00010687,2]
[348038772,1736272255640,-262.72280108,0.00010688,2]
[348038773,1736272255649,-315.18,0.00010688,2]
[348038774,1736272255659,-500.0,0.00010688,2]
[348038775,1736272255669,-1661.32,0.00010688,2]
[348038776,1736272255678,-500.0,0.00010688,2]
[348038777,1736272255687,-3402.67,0.00010688,2]
[348038778,1736272255696,-500.0,0.00010688,2]
[348038779,1736272255705,-566.8,0.00010688,2]
[348038780,1736272255714,-500.0,0.00010688,2]
[348038781,1736272255723,-500.0,0.00010688,2]
[348038782,1736272255734,-1107.42,0.00010688,2]
[348038783,1736272255743,-1952.83,0.00010688,2]
[348038784,1736272255753,-500.0,0.00010688,2]
[348038785,1736272255762,-500.0,0.00010688,2]
[348038786,1736272255771,-802.41,0.00010688,2]
[348038787,1736272255780,-936.05,0.00010688,2]
[348038788,1736272255790,-567.31,0.00010688,2]
[348038789,1736272255800,-500.0,0.00010688,2]
[348038790,1736272255809,-1050.45,0.00010688,2]
[348038791,1736272255818,-649.55,0.00010688,2]
[348038792,1736272255827,-606.55,0.00010688,2]
[348038793,1736272255836,-1364.31,0.00010688,2]
[348038794,1736272255846,-151.39234558,0.00010688,2]
[348038795,1736272255854,-1363.99,0.00010688,2]
[348038796,1736272255864,-500.0,0.00010688,2]
[348038797,1736272255873,-500.0,0.00010688,2]
[348038798,1736272255883,-500.0,0.00010689,2]
[348038799,1736272255892,-500.0,0.00010689,2]
[348038800,1736272255902,-500.0,0.00010689,2]
[348038801,1736272255911,-500.0,0.00010689,2]
[348038802,1736272255921,-581.26,0.00010689,2]
[348038803,1736272255933,-500.0,0.00010689,2]
[348038804,1736272255943,-536.55,0.00010689,2]
[348038805,1736272255953,-500.0,0.00010689,2]
[348038806,1736272255962,-1075.64,0.00010689,2]
[348038807,1736272255972,-919.68,0.00010689,2]
[348038808,1736272255981,-867.0,0.00010689,2]
[348038809,1736272255991,-500.0,0.00010689,2]
[348038810,1736272256001,-713.33,0.00010689,2]
[348038811,1736272256011,-667.51,0.00010689,2]
[348038812,1736272256021,-661.63,0.00010689,2]
[348038813,1736272256032,-1367.96,0.00010689,2]
[348038814,1736272256041,-629.9,0.00010689,2]
[348038815,1736272256050,-705.91,0.00010689,2]
[348038816,1736272256060,-500.0,0.00010689,2]
[348038817,1736272256070,-1268.32,0.00010689,2]
[348038818,1736272256078,-1000.0,0.00010689,2]
[348038819,1736272256088,-711.26,0.00010689,2]
[348038820,1736272256097,-545.05,0.00010689,2]
[348038821,1736272256107,-1853.8,0.00010689,2]
[348038822,1736272256117,-1376.9,0.00010689,2]
[348038823,1736272256128,-500.0,0.00010761,2]
[348038824,1736272256138,-500.0,0.00010761,2]
[348038825,1736272256148,-500.0,0.00010761,2]
[348038826,1736272256160,-500.0,0.00010761,2]
[348038827,1736272256169,-500.0,0.00010761,2]
[348038828,1736272256179,-500.0,0.00010761,2]
[348038829,1736272256189,-500.0,0.00010761,2]
[348038830,1736272256198,-500.0,0.00010761,2]
[348038831,1736272256207,-500.0,0.00010761,2]
[348038832,1736272256217,-500.0,0.00010761,2]
[348038833,1736272256228,-500.0,0.00010761,2]
[348038834,1736272256238,-2702.51,0.00010761,2]
[348038835,1736272256248,-1428.36,0.00010761,2]
[348038836,1736272256258,-500.0,0.00010761,2]
[348038837,1736272256267,-500.0,0.00010761,2]
[348038838,1736272256276,-1878.38,0.00010761,2]
[348038839,1736272256285,-500.0,0.00010761,2]
[348038840,1736272256294,-618.48,0.00010761,2]
[348038841,1736272256303,-500.0,0.00010761,2]
[348038842,1736272256313,-502.32,0.00010761,2]
[348038843,1736272256323,-500.0,0.00010761,2]
[348038844,1736272256332,-500.0,0.00010761,2]
[348038845,1736272256341,-361.76,0.00010788,2]
[348038846,1736272256351,-1000.0,0.00010835,2]
[348038847,1736272256360,-500.0,0.00010861,2]
[348038848,1736272256369,-500.0,0.00010861,2]
[348038849,1736272256378,-500.0,0.00010861,2]
[348038850,1736272256388,-500.0,0.00010861,2]
[348038851,1736272256397,-500.0,0.00010861,2]
[348038852,1736272256406,-500.0,0.00010861,2]
[348038853,1736272256415,-500.0,0.00010861,2]
[348038854,1736272256424,-500.0,0.00010861,2]
[348038855,1736272256434,-500.0,0.00010861,2]
[348038856,1736272256444,-628.94711362,0.00010861,2]
[348038857,1736272256453,-500.0,0.00010861,2]
[348038858,1736272256463,-500.0,0.00010861,2]
[348038859,1736272256472,-500.0,0.00010861,2]
[348038860,1736272256483,-500.0,0.00010861,2]
[348038861,1736272256491,-763.55,0.00010861,2]
[348038862,1736272256501,-602.54,0.00010861,2]
[348038863,1736272256510,-500.0,0.00010861,2]
[348038864,1736272256520,-500.0,0.00010861,2]
[348038865,1736272256529,-917.02,0.00010861,2]
[348038866,1736272256539,-344.838578,0.00010861,2]
[348038867,1736272256548,-2473.99,0.00010861,2]
[348038868,1736272256557,-500.0,0.00010861,2]
[348038869,1736272256566,-500.0,0.00010861,2]
[348038870,1736272256576,-500.0,0.00010861,2]
[348038871,1736272256585,-500.0,0.00010861,2]
[348038872,1736272256595,-867.63,0.00010861,2]
[348038873,1736272256604,-413.015248,0.00010861,2]
[348038874,1736272256613,-500.0,0.00010861,2]
[348038875,1736272256623,-500.0,0.00010861,2]
[348038876,1736272256633,-500.0,0.00010861,2]
[348038877,1736272256642,-500.0,0.00010861,2]
[348038878,1736272256651,-655.66,0.00010861,2]
[348038879,1736272256662,-746.35,0.00010861,2]
[348038880,1736272256671,-628.35,0.00010861,2]
[348038881,1736272256680,-500.0,0.00010861,2]
[348038882,1736272256690,-500.0,0.00010861,2]
[348038883,1736272256700,-500.0,0.00010861,2]
[348038884,1736272256709,-1564.97,0.00010861,2]
[348038885,1736272256719,-500.0,0.00010861,2]
[348038886,1736272256727,-500.0,0.00010861,2]
[348038887,1736272256737,-1076.27,0.00010861,2]
[348038888,1736272256746,-787.47,0.00010861,2]
[348038889,1736272256755,-500.0,0.00010861,2]
[348038890,1736272256764,-500.0,0.00010861,2]
[348038891,1736272256773,-2648.86,0.00010861,2]
[348038892,1736272256783,-500.0,0.00010861,2]
[348038893,1736272256791,-500.0,0.00010861,2]
[348038894,1736272256803,-1986.92,0.00010861,2]
[348038895,1736272256812,-500.0,0.00010861,2]
[348038896,1736272256821,-500.0,0.00010861,2]
[348038897,1736272256830,-500.0,0.00010861,2]
[348038898,1736272256840,-641.19,0.00010861,2]
[348038899,1736272256849,-500.0,0.00010861,2]
[348038900,1736272256858,-500.0,0.00010861,2]
[348038901,1736272256868,-500.0,0.00010861,2]
[348038902,1736272256877,-548.1,0.00010861,2]
[348038903,1736272256887,-187.70752185,0.00010861,2]
[348038904,1736272256896,-500.0,0.00010861,2]
[348038905,1736272256906,-500.0,0.00010862,2]
[348038906,1736272256915,-538.17481988,0.00010862,2]
[348038907,1736272256924,-634.19,0.00010862,2]
[348038908,1736272256936,-500.0,0.00010862,2]
[348038909,1736272256947,-500.0,0.00010862,2]
[348038910,1736272256956,-500.0,0.00010862,2]
[348038911,1736272256967,-500.0,0.00010862,2]
[348038912,1736272256975,-500.0,0.00010862,2]
[348038913,1736272256985,-500.0,0.00010862,2]
[348038914,1736272256994,-500.0,0.00010862,2]
[348038915,1736272257006,-500.0,0.00010862,2]
[348038916,1736272257015,-500.0,0.00010862,2]
[348038917,1736272257024,-500.0,0.00010862,2]
[348038918,1736272257033,-500.0,0.00010862,2]
[348038919,1736272257041,-500.0,0.00010862,2]
[348038920,1736272257051,-500.0,0.00010862,2]
[348038921,1736272257060,-368.85983101,0.00010862,2]
[348038922,1736272257070,-517.22,0.00010862,2]
[348038923,1736272257078,-500.0,0.00010862,2]
[348038924,1736272257088,-500.0,0.00010862,2]
[348038925,1736272257097,-500.0,0.00010862,2]
[348038926,1736272257107,-500.0,0.00010862,2]
[348038927,1736272257117,-500.0,0.00010862,2]
[348038928,1736272257127,-500.0,0.00010862,2]
[348038929,1736272257136,-500.0,0.00010862,2]
[348038930,1736272257146,-500.0,0.00010862,2]
[348038931,1736272257156,-500.0,0.00010862,2]
[348038932,1736272257166,-500.0,0.00010862,2]
[348038933,1736272257175,-2179.67,0.00010862,2]
[348038934,1736272257184,-611.46,0.00010862,2]
[348038935,1736272257196,-111191.11354349,0.000109,2]
[348038936,1736272257205,-2600.0,0.000109,3]
[348038937,1736272257214,-1247.75,0.00010958,2]
[348038938,1736272257223,-866.16,0.00010961,2]
[348038939,1736272257232,-1383.54,0.00010961,2]
[348038940,1736272257242,-991.68,0.00010961,2]
[348038941,1736272257251,-762.59,0.00010961,2]
[348038942,1736272257260,-500.0,0.00010961,2]
[348038943,1736272257270,-1227.02,0.00010961,2]
[348038944,1736272257280,-637.36,0.00010961,2]
[348038945,1736272257290,-508.49,0.00010961,2]
[348038946,1736272257300,-500.0,0.00010961,2]
[348038947,1736272257309,-1029.16,0.00010961,2]
[348038948,1736272257319,-650.45,0.00010961,2]
[348038949,1736272257328,-500.0,0.00010961,2]
[348038950,1736272257337,-1663.49,0.00010961,2]
[348038951,1736272257347,-500.0,0.00010961,2]
[348038952,1736272257356,-500.0,0.00010961,2]
[348038953,1736272257366,-500.0,0.00010961,2]
[348038954,1736272257375,-500.0,0.00010962,2]
[348038955,1736272257385,-1661.32,0.00010962,2]
[348038956,1736272257395,-500.0,0.00010962,2]
[348038957,1736272257404,-3402.67,0.00010962,2]
[348038958,1736272257414,-500.0,0.00010962,2]
[348038959,1736272257424,-566.8,0.00010962,2]
[348038960,1736272257433,-500.0,0.00010962,2]
[348038961,1736272257446,-500.0,0.00010962,2]
[348038962,1736272257455,-1107.42,0.00010962,2]
[348038963,1736272257464,-1952.83,0.00010962,2]
[348038964,1736272257474,-500.0,0.00010962,2]
[348038965,1736272257483,-500.0,0.00010962,2]
[348038966,1736272257493,-802.41,0.00010962,2]
[348038967,1736272257503,-936.05,0.00010962,2]
[348038968,1736272257512,-567.31,0.00010962,2]
[348038969,1736272257522,-500.0,0.00010962,2]
[348038970,1736272257532,-1050.45,0.00010962,2]
[348038971,1736272257542,-649.55,0.00010962,2]
[348038972,1736272257551,-606.55,0.00010962,2]
[348038973,1736272257561,-1364.31,0.00010962,2]
[348038974,1736272257571,-1363.99,0.00010962,2]
[348038975,1736272257581,-500.0,0.00010962,2]
[348038976,1736272257590,-500.0,0.00010962,2]
[348038977,1736272257599,-500.0,0.00010963,2]
[348038978,1736272257610,-500.0,0.00010963,2]
[348038979,1736272257619,-500.0,0.00010963,2]
[348038980,1736272257628,-566.05363796,0.00010963,2]
[348038981,1736272257638,-581.26,0.00010963,2]
[348038982,1736272257647,-500.0,0.00010963,2]
[348038983,1736272257656,-536.55,0.00010963,2]
[348038984,1736272257666,-500.0,0.00010963,2]
[348038985,1736272257675,-1075.64,0.00010963,2]
[348038986,1736272257684,-919.68,0.00010963,2]
[348038987,1736272257696,-867.0,0.00010963,2]
[348038988,1736272257706,-500.0,0.00010963,2]
[348038989,1736272257715,-713.33,0.00010963,2]
[348038990,1736272257724,-667.51,0.00010963,2]
[348038991,1736272257734,-661.63,0.00010963,2]
[348038992,1736272257743,-1367.96,0.00010963,2]
[348038993,1736272257753,-629.9,0.00010963,2]
[348038994,1736272257762,-705.91,0.00010963,2]
[348038995,1736272257773,-500.0,0.00010963,2]
[348038996,1736272257782,-1268.32,0.00010963,2]
[348038997,1736272257791,-1000.0,0.00010963,2]
[348038998,1736272257801,-711.26,0.00010963,2]
[348038999,1736272257810,-545.05,0.00010963,2]
[348039000,1736272257820,-1853.8,0.00010963,2]
[348039001,1736272257830,-1376.9,0.00010963,2]
[348039002,1736272257839,-550.0,0.00011,2]
[348039003,1736272257850,-20518.88296522,0.00011,2]
[348039004,1736272257860,-500.0,0.00011035,2]
[348039005,1736272257869,-500.0,0.00011035,2]
[348039006,1736272257878,-500.0,0.00011035,2]
[348039007,1736272257888,-500.0,0.00011035,2]
[348039008,1736272257897,-500.0,0.00011035,2]
[348039009,1736272257907,-500.0,0.00011035,2]
[348039010,1736272257916,-500.0,0.00011035,2]
[348039011,1736272257926,-500.0,0.00011035,2]
[348039012,1736272257938,-500.0,0.00011035,2]
[348039013,1736272257947,-500.0,0.00011035,2]
[348039014,1736272257957,-500.0,0.00011035,2]
[348039015,1736272257966,-2702.51,0.00011035,2]
[348039016,1736272257978,-1428.36,0.00011035,2]
[348039017,1736272257988,-500.0,0.00011035,2]
[348039018,1736272257998,-500.0,0.00011035,2]
[348039019,1736272258009,-1878.38,0.00011035,2]
[348039020,1736272258018,-500.0,0.00011035,2]
[348039021,1736272258028,-618.48,0.00011035,2]
[348039022,1736272258038,-500.0,0.00011035,2]
[348039023,1736272258048,-502.32,0.00011035,2]
[348039024,1736272258058,-500.0,0.00011035,2]
[348039025,1736272258068,-500.0,0.00011035,2]
[348039026,1736272258078,-150.0,0.00011047,2]
[348039027,1736272258089,-150.0,0.00011047,2]
[348039028,1736272258099,-150.0,0.00011047,2]
[348039029,1736272258110,-150.0,0.00011111,2]
[348039030,1736272258121,-665.14,0.00011134,2]
[348039031,1736272258131,-500.0,0.00011135,2]
[348039032,1736272258140,-500.0,0.00011135,2]
[348039033,1736272258150,-500.0,0.00011135,2]
[348039034,1736272258160,-500.0,0.00011135,2]
[348039035,1736272258170,-500.0,0.00011135,2]
[348039036,1736272258180,-500.0,0.00011135,2]
[348039037,1736272258191,-500.0,0.00011135,2]
[348039038,1736272258201,-500.0,0.00011135,2]
[348039039,1736272258211,-500.0,0.00011135,2]
[348039040,1736272258221,-500.0,0.00011135,2]
[348039041,1736272258230,-350.77,0.00011135,2]
[348039042,1736272258240,-500.0,0.00011135,2]
[348039043,1736272258249,-500.0,0.00011135,2]
[348039044,1736272258259,-763.55,0.00011135,2]
[348039045,1736272258269,-500.0,0.00011135,2]
[348039046,1736272258279,-602.54,0.00011135,2]
[348039047,1736272258289,-500.0,0.00011135,2]
[348039048,1736272258299,-917.02,0.00011135,2]
[348039049,1736272258308,-344.838578,0.00011135,2]
[348039050,1736272258318,-500.0,0.00011135,2]
[348039051,1736272258327,-2473.99,0.00011135,2]